[Event "13th London Chess Classic 2023"]
[Site "London"]
[Date "2023.12.04"]
[Round "4.1"]
[White "Volokitin, Andrei"]
[Black "Tabatabaei, M. Amin"]
[Result "0-1"]
[ECO "C77"]
[WhiteElo "2660"]
[BlackElo "2694"]
[Annotator "TA"]
[PlyCount "63"]
[EventDate "2023.11.27"]
[EventType "tourn"]
[EventCountry "ENG"]
[SourceTitle "playchess.com"]
[Source "ChessBase"]
[SourceQuality "1"]
[TimeControl "40/5400+30:1800+30"]

{[%evp 16,63,32,24,24,20,22,8,20,19,43,37,43,43,43,41,46,51,49,45,58,27,46,19,18,19,17,19,16,28,16,13,29,36,53,12,18,16,11,0,0,-12,38,-180,-163,-162,-159,-209,-211,-764]} 1. e4 {[%emt 0:00:03]} e5 {[%emt 0:00:04]} 2. Nf3 {[%emt 0:00:07]} Nc6 {[%emt 0:00:03]} 3. Bb5 {[%emt 0:00:15]} a6 {[%emt 0:00:06]} 4. Ba4 {[%emt 0:00:08]} Nf6 {[%emt 0:00:04]} 5. d3 {[%emt 0:00:13]} d6 {[%emt 0:00:06]} 6. c3 {[%emt 0:00:11]} g6 {[%emt 0:00:09]} 7. O-O {[%emt 0:00:20]} Bg7 {[%emt 0:00:05]} 8. h3 {[%emt 0:00:13]} O-O {[%emt 0:00:08]} 9. Re1 {[%emt 0:00:10]} h6 {[%emt 0:02:17] C77: Ruy Lopez: 3...a6 4 Ba4 Nf6, unusual lines.} 10. a3 {[%emt 0:01:16]} b5 {[%emt 0:04:55]} 11. Bc2 {[%emt 0:00:07]} Bb7 {[%emt 0:20:09] The position is equal.} 12. Be3 {[%emt 0:16:44] [#]} Re8 $146 {[%emt 0:01:03]} ({Predecessor:} 12... d5 13. Nbd2 Qd6 14. Nb3 Nd7 15. Qd2 dxe4 16. dxe4 Qxd2 17. Nfxd2 Rfd8 18. a4 Bf8 {½-½ Bjerre,J (2542)-Saduakassova,D (2500) Gelfand Challenge rapid 2021 (16)}) 13. Qc1 {[%emt 0:04:04]} Kh7 {[%emt 0:01:09]} 14. Nbd2 {[%emt 0:00:10][%cal Bb1d2,Bd2b3,Bb3a5,Ba5c4][%mdl 32]} Nb8 {[%emt 0:00:39][%cal Bc6b8,Bb8d7,Bd7b6][%mdl 32]} 15. b4 {[%emt 0:07:23]} Nbd7 {[%emt 0:08:52]} 16. Nb3 {[%emt 0:10:02]} Rc8 {[%emt 0:00:21]} 17. a4 {[%emt 0:01:22]} c6 {[%emt 0:00:38]} 18. Qd2 {[%emt 0:27:06]} Nb6 {[%emt 0:01:53]} 19. axb5 {[%emt 0:03:42]} cxb5 {[%emt 0:00:29]} 20. Na5 {[%emt 0:00:27]} Ba8 {[%emt 0:00:40] [#]} 21. c4 $1 {[%emt 0:00:57]} bxc4 {[%emt 0:03:30]} 22. Bxb6 {[%emt 0:02:08]} Qxb6 {[%emt 0:00:19]} 23. Nxc4 {[%emt 0:16:47]} Qc7 {[%emt 0:03:53]} (23... Qc6 $2 24. Ba4 Qc7 25. Bxe8 Rxe8 26. Rxa6 Nxe4 27. Qe3 $18 (27. Rxe4 Bxe4 28. Nxd6 Ra8 $16)) (23... Qb8 $5 {[%cal Rd6d5]}) 24. Bb3 {[%emt 0:01:20]} Rcd8 {[%emt 0:07:46]} 25. Rxa6 {[%emt 0:06:01] Rc1 is the strong threat.} d5 {[%emt 0:00:39]} 26. Ncxe5 {[%emt 0:00:09]} Rxe5 {[%emt 0:06:17]} (26... dxe4 {is interesting.} 27. Rxf6 Bxf6 28. Nxf7 Bg7) 27. Nxe5 {[%emt 0:00:26]} Qxe5 {[%emt 0:00:01]} 28. exd5 {[%emt 0:01:06]} Qd4 {[%emt 0:00:02]} ({Black should play} 28... Qc7 $11) 29. Bc4 $2 {[%emt 0:01:29] Now White is beyond hope.} (29. Re7 $1 $14 {keeps the upper hand.} Rf8 30. d6) 29... Bb7 $19 {[%emt 0:01:25] Black is clearly better.} ({And not} 29... Bxd5 30. Bxd5 Rxd5 31. Re7 $11) ({Don't do} 29... Nxd5 30. Re4 Qc3 31. Qxc3 Nxc3 32. Re7 $16) 30. Ra5 {[%emt 0:00:17]} Nxd5 {[%emt 0:00:20]} ({Weaker is} 30... Bxd5 31. Qc2 $15) 31. Re4 {[%emt 0:00:18]} (31. Ba6 $17 {keeps fighting.} Bxa6 32. Rxa6) 31... Qf6 {[%emt 0:00:46][%mdl 1024] [#] aiming for ...Nb6. Black has strong compensation.} 32. Ra4 $2 {[%emt 0:01:29] Weighted Error Value: White=0.24 (precise) /Black=0.08 (flawless)} (32. d4) 0-1

[Event "13th London Chess Classic 2023"]
[Site "London"]
[Date "2023.12.04"]
[Round "4.2"]
[White "Niemann, Hans Moke"]
[Black "Royal, Shreyas"]
[Result "1-0"]
[ECO "C54"]
[WhiteElo "2659"]
[BlackElo "2404"]
[Annotator "TA"]
[PlyCount "89"]
[EventDate "2023.11.27"]
[EventType "tourn"]
[EventCountry "ENG"]
[SourceTitle "playchess.com"]
[Source "ChessBase"]
[SourceQuality "1"]
[TimeControl "40/5400+30:1800+30"]

{[%evp 10,89,15,18,15,8,11,14,15,4,4,8,0,0,3,0,0,4,18,0,18,0,0,-18,0,0,0,-15,0,0,0,-24,-25,-19,-22,-33,3,7,21,6,42,0,0,-18,0,-68,-32,-67,-24,-101,-94,-93,-4,0,0,0,0,0,-1,-23,80,75,548,533,625,615,583,463,5489,2180,29985,29986,29986,29987,29987,29988,29990,29989,29989,29990,12832,12549]} 1. e4 {[%emt 0:00:10]} e5 {[%emt 0:00:07]} 2. Nf3 {[%emt 0:00:09]} Nc6 {[%emt 0:00:05]} 3. Bc4 {[%emt 0:00:12]} Bc5 {[%emt 0:00:06]} 4. d3 {[%emt 0:00:12]} Nf6 {[%emt 0:00:07]} 5. O-O {[%emt 0:00:09]} d6 {[%emt 0:00:03]} 6. c3 {[%emt 0:00:07]} a5 {[%emt 0:00:35] C54: Giuoco Piano: 4 c3 Nf6, main lines with 5 d4 and 5 d3.} 7. Re1 {[%emt 0:01:02]} O-O {[%emt 0:00:10]} 8. h3 {[%emt 0:00:42]} h6 {[%emt 0:00:07] The position is equal.} 9. Nbd2 {[%emt 0:00:53]} Be6 {[%emt 0:00:17]} 10. Bb5 {[%emt 0:00:15]} Qb8 {[%emt 0:00:08]} 11. Nf1 {[%emt 0:01:50]} Qa7 {[%emt 0:00:10]} 12. Re2 {[%emt 0:00:10]} a4 {[%emt 0:00:07]} 13. Ng3 {[%emt 0:00:25]} Qa5 {[%emt 0:00:18]} 14. Bxc6 {[%emt 0:00:07]} bxc6 {[%emt 0:00:05]} 15. Rc2 $5 {[%emt 0:00:06][%mdl 4] [#] Leaves trodden paths.} Rfb8 $146 {[%emt 0:03:53]} ({Predecessor:} 15... Rfe8 16. Nh4 d5 17. Qf3 Nh7 18. Nhf5 Bf8 19. h4 Rad8 20. Be3 dxe4 21. dxe4 a3 {1-0 Yu,Y (2735)-Le,T (2557) Aimchess Rapid Div 3 W 2023 (6.5)}) 16. c4 {[%emt 0:02:19]} Qb6 {[%emt 0:03:20]} 17. Qe2 {[%emt 0:00:58]} Kh7 {[%emt 0:03:18]} 18. Rb1 {[%emt 0:02:51]} Qa7 {[%emt 0:05:03]} 19. Bd2 {[%emt 0:01:34]} Bb6 {[%emt 0:05:30]} 20. b4 {[%emt 0:02:12]} axb3 {[%emt 0:00:11]} 21. axb3 {[%emt 0:00:05]} c5 {[%emt 0:01:05]} 22. Nh4 {[%emt 0:01:32]} Ng8 {[%emt 0:04:19]} 23. f4 {[%emt 0:05:12]} exf4 {[%emt 0:06:49]} 24. Bxf4 {[%emt 0:00:09]} Re8 {[%emt 0:00:42]} (24... g5 $2 25. Bxg5 hxg5 26. Qh5+ Kg7 27. Nhf5+ (27. Qxg5+ Kf8 $18) 27... Kf8 28. Qh8 $18 (28. Qxg5 f6 $14)) 25. Bd2 {[%emt 0:12:46]} (25. Rf1 $5 {[%cal Rf4c1]}) 25... c6 {[%emt 0:15:04]} 26. Ngf5 {[%emt 0:08:20]} d5 {[%emt 0:05:27]} 27. Bc3 {[%emt 0:11:13]} (27. Qg4 g6 28. exd5 cxd5 $17) (27. Nd6 $11 Red8 28. e5) 27... d4 $15 {[%emt 0:04:17]} 28. Bd2 {[%emt 0:03:55]} (28. Qg4 $2 g6 29. Bd2 (29. Ra1 $2 Qb7 $19) 29... Bc7 $17) 28... Bc7 {[%emt 0:01:39] Dodges Nd6} 29. Qf3 {[%emt 0:08:35]} ({But not} 29. Qg4 g6 30. Rcb2 gxf5 $19) (29. g4 $11 {keeps the balance.}) 29... g6 $17 {[%emt 0:01:38]} 30. g4 {[%emt 0:02:16]} Bd8 {[%emt 0:04:29]} ({Reject} 30... gxf5 $6 31. gxf5 Bxc4 32. bxc4 $11) ({Black should play} 30... Qb8 $17 {...Qd8 would be deadly.} 31. g5 Qd8) 31. Ng2 $11 {[%emt 0:01:10]} gxf5 {[%emt 0:01:14]} 32. gxf5 {[%emt 0:00:05]} Bc8 {[%emt 0:00:32]} 33. Kh1 $1 {[%emt 0:00:54]} Qe7 {[%emt 0:02:32] With the idea ...Nf6.} 34. Rg1 $1 {[%emt 0:02:01]} Bc7 {[%emt 0:03:24] [#]} (34... Bd7 $11) 35. Qh5 $1 $16 {[%emt 0:08:12][%mdl 1024] And now Nh4 would win. White has strong compensation.} Be5 $2 {[%emt 0:06:13][%mdl 8192] Loses the game.} (35... Kh8 $2 36. Bxh6 Qf6 37. Bf8+ $18) (35... Qf8 $16) 36. Nh4 $18 {[%emt 0:02:42] aiming for Nf3.} Ra7 {[%emt 0:11:48]} 37. Nf3 {[%emt 0:01:51]} Bg7 {[%emt 0:03:48]} 38. Bf4 {[%emt 0:04:09] Threatens to win with Rcg2.} ({Weaker is} 38. Qg4 f6 39. Bf4 Rd8 $16) 38... Bf8 {[%emt 0:00:17] [#]} (38... f6 $142 39. Rcg2 Rd8 40. Rxg7+ Qxg7 41. Rxg7+ Rxg7) 39. Rxg8 $1 {[%emt 0:03:51][%mdl 512] Threatening mate with Rcg2.} Kxg8 {[%emt 0:00:10]} (39... Ra1+ 40. Rg1) 40. Rg2+ {[%emt 0:00:00]} Bg7 {[%emt 0:00:00] [#]} 41. Rxg7+ $1 {[%emt 0:00:32][%mdl 512]} Kxg7 {[%emt 0:01:59]} 42. Bxh6+ {[%emt 0:00:04]} Kh7 {[%emt 0:00:27]} 43. Bg5+ {[%emt 0:00:12]} Kg8 {[%emt 0:00:05]} 44. Bxe7 {[%emt 0:00:04]} Rexe7 {[%emt 0:00:07]} 45. f6 {[%emt 0:00:04][%csl LRc5,LRe7] A cool game by Niemann.   Weighted Error Value: White=0.16 (very precise) /Black=0.40} 1-0

[Event "13th London Chess Classic 2023"]
[Site "London"]
[Date "2023.12.04"]
[Round "4.3"]
[White "Bartel, Mateusz"]
[Black "McShane, Luke J"]
[Result "1-0"]
[ECO "C65"]
[WhiteElo "2651"]
[BlackElo "2626"]
[Annotator "TA"]
[PlyCount "77"]
[EventDate "2023.11.27"]
[EventType "tourn"]
[EventCountry "ENG"]
[SourceTitle "playchess.com"]
[Source "ChessBase"]
[SourceQuality "1"]
[TimeControl "40/5400+30:1800+30"]

{[%evp 9,77,-7,0,-15,17,4,29,24,22,29,25,11,8,7,9,11,13,14,59,30,41,25,13,0,0,0,0,0,0,5,0,-7,0,-26,14,27,13,27,13,18,15,0,0,6,49,62,143,141,137,139,150,131,131,102,161,161,166,166,166,166,175,123,204,162,345,331,347,342,625,566]} 1. e4 {[%emt 0:00:04]} e5 {[%emt 0:00:14]} 2. Nf3 {[%emt 0:00:08]} Nc6 {[%emt 0:00:05]} 3. Bb5 {[%emt 0:00:10]} Nf6 {[%emt 0:00:15]} 4. d3 {[%emt 0:00:06]} Bc5 {[%emt 0:00:28]} 5. Bg5 {[%emt 0:00:09]} h6 {[%emt 0:14:36]} 6. Bh4 {[%emt 0:00:05] C65: Ruy Lopez: Berlin Defence (3...Nf6), unusual lines and 4 0-0 Bc5.} d6 {[%emt 0:00:07]} 7. Nc3 {[%emt 0:00:34]} Bd7 {[%emt 0:06:02]} 8. Na4 {[%emt 0:00:14] Strongly threatening Nxc5. White has an edge.} Bb6 {[%emt 0:01:40] [#]} 9. Nxb6 $146 {[%emt 0:02:32]} ({Predecessor:} 9. c3 Ne7 10. Bxf6 gxf6 11. Bxd7+ Qxd7 12. O-O Rg8 13. Ne1 f5 14. Kh1 fxe4 15. dxe4 {1-0 Praggnanandhaa,R (2738)-Deac,B (2701) FIDE Grand Swiss 2023 (11)}) 9... axb6 {[%emt 0:00:04]} 10. c3 {[%emt 0:00:07]} g5 {[%emt 0:11:41]} 11. Bg3 {[%emt 0:00:33]} Ne7 {[%emt 0:00:09]} 12. Bc4 {[%emt 0:01:20]} Ng6 {[%emt 0:22:47]} 13. h4 {[%emt 0:04:51]} Ng4 {[%emt 0:01:28]} 14. Qd2 {[%emt 0:16:13][%cal Rh4g5]} f6 {[%emt 0:07:09]} 15. O-O-O {[%emt 0:00:14]} Qe7 {[%emt 0:05:05]} 16. h5 {[%emt 0:02:50]} Nf4 {[%emt 0:05:59]} 17. Bxf4 {[%emt 0:09:56]} exf4 {[%emt 0:01:07]} 18. Nd4 {[%emt 0:00:08]} O-O-O {[%emt 0:01:00]} 19. Bb3 {[%emt 0:01:29]} Rhe8 {[%emt 0:06:33]} 20. Rde1 {[%emt 0:00:36]} Qh7 {[%emt 0:02:20]} 21. g3 {[%emt 0:15:35]} Ne5 {[%emt 0:04:54]} 22. gxf4 {[%emt 0:00:07]} gxf4 {[%emt 0:00:03][%cal Od6d5]} 23. Rd1 {[%emt 0:04:53]} c5 {[%emt 0:06:37]} 24. Ne2 {[%emt 0:00:21][%cal Bd4e2,Be2f4,Bf4d5][%mdl 32]} Bg4 {[%emt 0:00:49][%cal Oc5c4]} 25. Nxf4 {[%emt 0:00:28][%cal Of4d5] next Nd5! is good for White.} Bxd1 {[%emt 0:00:03]} 26. Rxd1 {[%emt 0:00:16] Black should prevent Be6+.} Kb8 {[%emt 0:00:23][%cal Oc5c4]} (26... c4 $5 {[%cal Rc4b3]} 27. Ba4 Re7 $14) 27. Nd5 {[%emt 0:02:48][%csl LRb6,LRf6]} Rf8 {[%emt 0:01:24] [#]} (27... Qf7 $14) 28. f4 $1 $16 {[%emt 0:01:32]} (28. Nxb6 f5 $14) 28... Nc6 {[%emt 0:00:03]} 29. f5 {[%emt 0:00:38]} ({Resist} 29. Nxb6 f5 $16) 29... Qg7 {[%emt 0:00:22]} 30. Nxb6 {[%emt 0:06:45] White is more active.} Qg5 {[%emt 0:00:36] Black is weak on the light squares} 31. Be6 {[%emt 0:00:26]} Qxh5 {[%emt 0:01:04]} (31... Rh8 $16) 32. Nd7+ $18 {[%emt 0:09:35]} Rxd7 {[%emt 0:00:03]} 33. Bxd7 {[%emt 0:00:06]} Ne5 {[%emt 0:00:02]} 34. Be6 {[%emt 0:00:06]} Qg5 {[%emt 0:00:04]} 35. Kc2 {[%emt 0:00:33]} (35. Rh1 $18) 35... h5 {[%emt 0:02:02]} (35... Rh8 $16 {keeps fighting.} 36. d4 Qxd2+ 37. Kxd2 Nc6) 36. d4 {[%emt 0:01:29][%cal Bd3d4,Bd4c5][%mdl 32]} Nf3 {[%emt 0:00:32]} (36... Qxd2+ 37. Kxd2 Nc6) 37. Qf2 {[%emt 0:01:02][%csl LRc5,LRf3]} Qf4 {[%emt 0:00:31][%cal Of3d4] [#] ...Nxd4+! would be deadly.} 38. dxc5 {[%emt 0:00:22]} ({Less strong is} 38. Qe2 Qg4 39. Kd3 cxd4 $16) 38... h4 $2 {[%emt 0:00:37]} (38... dxc5 39. Qxc5 Rh8) 39. Rd3 {[%emt 0:00:53] Weighted Error Value: White=0.09 (flawless) /Black=0.38} 1-0

[Event "13th London Chess Classic 2023"]
[Site "London"]
[Date "2023.12.04"]
[Round "4.4"]
[White "Vitiugov, Nikita"]
[Black "Adams, Michael"]
[Result "1/2-1/2"]
[ECO "D37"]
[WhiteElo "2712"]
[BlackElo "2670"]
[Annotator "TA"]
[PlyCount "101"]
[EventDate "2023.11.27"]
[EventType "tourn"]
[EventCountry "ENG"]
[SourceTitle "playchess.com"]
[Source "ChessBase"]
[SourceQuality "1"]
[TimeControl "40/5400+30:1800+30"]

{[%evp 14,101,17,11,10,12,10,13,20,22,22,23,19,14,11,10,20,10,14,6,24,25,24,20,23,25,21,0,0,0,0,0,0,0,0,0,0,0,0,0,-6,-6,0,0,0,0,26,26,40,35,36,36,36,36,36,36,36,36,36,36,36,36,36,36,39,36,36,36,35,35,36,36,36,36,29,0,14,0,14,7,14,14,14,14,14,0,0,0,14,0]} 1. d4 {[%emt 0:00:17]} Nf6 {[%emt 0:00:17]} 2. c4 {[%emt 0:00:21]} e6 {[%emt 0:00:05]} 3. Nf3 {[%emt 0:00:21]} d5 {[%emt 0:00:08]} 4. Nc3 {[%emt 0:00:22]} Be7 {[%emt 0:00:25]} 5. Bf4 {[%emt 0:00:11]} O-O {[%emt 0:00:14]} 6. e3 {[%emt 0:00:09]} Nbd7 {[%emt 0:00:15]} 7. c5 {[%emt 0:00:32]} c6 {[%emt 0:00:17]} 8. h3 {[%emt 0:02:27]} b6 {[%emt 0:01:04] D37: Queen's Gambit Declined: 5 Bf4.} 9. b4 {[%emt 0:00:05]} a5 {[%emt 0:00:10]} 10. a3 {[%emt 0:00:05]} h6 {[%emt 0:00:28]} 11. Bd3 {[%emt 0:00:27]} Ba6 {[%emt 0:02:54] [#] Hoping for ...Bxd3.} 12. O-O {[%emt 0:02:49]} Qc8 {[%emt 0:01:05]} 13. Qc2 {[%emt 0:00:20]} Bxd3 {[%emt 0:04:21] was the old line (13...Qb7).} 14. Qxd3 {[%emt 0:00:05]} Qb7 {[%emt 0:00:21]} 15. Rfc1 {[%emt 0:01:23]} Rfc8 {[%emt 0:10:03]} 16. Qd1 {[%emt 0:00:44] [#]} Bd8 $146 {[%emt 0:06:41]} ({Predecessor:} 16... Ra7 17. Rab1 axb4 18. axb4 Ra3 19. Nd2 b5 20. Ra1 Rca8 21. Rxa3 Rxa3 22. Nb3 Bd8 {1-0 Ding,L (2799)-Nakamura,H (2736) Speed Chess Chess.com INT blitz 2021 (3.31)}) 17. Ne1 {[%emt 0:00:31]} Bc7 {[%emt 0:04:23]} 18. Nd3 {[%emt 0:00:15]} Bxf4 {[%emt 0:10:24]} 19. exf4 {[%emt 0:00:09]} Ra7 {[%emt 0:00:18]} 20. Rab1 {[%emt 0:02:52]} axb4 {[%emt 0:02:59]} 21. axb4 {[%emt 0:01:17]} b5 {[%emt 0:01:35]} 22. f3 {[%emt 0:07:47]} Rca8 {[%emt 0:02:27]} 23. Qd2 {[%emt 0:01:10]} Nf8 {[%emt 0:02:21]} 24. Rc2 {[%emt 0:03:20]} Ng6 {[%emt 0:05:06]} 25. Ne2 {[%emt 0:10:39]} Nd7 {[%emt 0:05:55]} 26. Rbb2 {[%emt 0:06:05]} h5 {[%emt 0:10:44]} 27. g3 {[%emt 0:07:39][%cal Bg2g3,Bg3g4][%mdl 32]} Ra1+ {[%emt 0:03:02]} (27... Qc7 {simplifies} 28. Ra2 Ndf8 29. Rxa7 Qxa7 30. Nc3 Qb8) 28. Kg2 {[%emt 0:01:05]} h4 {[%emt 0:02:03] [#] And now ...hxg3 would win.} 29. g4 {[%emt 0:51:33]} R8a4 {[%emt 0:00:51]} 30. Ra2 {[%emt 0:00:00]} Qa7 {[%emt 0:01:00]} 31. Nc3 {[%emt 0:00:00]} Ra3 {[%emt 0:24:04]} 32. Rxa1 Rxa1 33. Ra2 {[%emt 0:00:00]} Rxa2 {[%emt 0:00:00]} 34. Qxa2 {[%emt 0:00:00]} Qb8 {[%emt 0:00:00]} 35. Ne2 {[%emt 0:00:00]} f6 {[%emt 0:00:00]} 36. Qa6 {[%emt 0:00:00]} Ne7 {[%emt 0:00:00]} 37. Qa1 {[%emt 0:00:00]} Nf8 {[%emt 0:00:00]} 38. Kg1 {[%emt 0:00:00][%cal Bg2g1,Bg1f2,Bf2e3,Be3d2,Bd2c2][%mdl 32]} Nfg6 {[%emt 0:00:00]} 39. Kf2 {[%emt 0:00:00]} Kf7 {[%emt 0:00:00]} 40. Ke3 {[%emt 0:00:00]} Nf8 {[%emt 0:00:00]} 41. Kd2 {[%emt 0:00:00]} Nfg6 {[%emt 0:01:25]} 42. Kc2 {[%emt 0:00:00]} Ke8 {[%emt 0:03:38]} 43. Qa6 {[%emt 0:00:00]} Kd7 {[%emt 0:01:46]} 44. Qa1 {[%emt 0:00:00]} Ke8 {[%emt 0:00:06] The position is equal.} 45. Kd2 {[%emt 0:00:00]} Kf7 {[%emt 0:01:24]} 46. Qa6 {[%emt 0:00:00]} Nf8 {[%emt 0:01:03]} (46... Ke8 {seems wilder.} 47. Ke3 Kd7 48. Qb6 Qa8) 47. Qb6 {[%emt 0:04:44]} Qa8 {[%emt 0:01:21]} 48. Qa5 {[%emt 0:00:05] Prevents Qa1.} Qb8 {[%emt 0:00:08]} 49. Qb6 {[%emt 0:00:20]} Qa8 {[%emt 0:00:04]} 50. Qa5 {[%emt 0:00:03] Wards off Qa1} Qb8 {[%emt 0:00:06]} 51. Qb6 {[%emt 0:00:07] Weighted Error Value: White=0.03 (flawless) /Black=0.03 (flawless)} 1/2-1/2

[Event "13th London Chess Classic 2023"]
[Site "London"]
[Date "2023.12.04"]
[Round "4.5"]
[White "Gukesh D"]
[Black "Moussard, Jules"]
[Result "0-1"]
[ECO "C42"]
[WhiteElo "2746"]
[BlackElo "2639"]
[Annotator "TA"]
[PlyCount "66"]
[EventDate "2023.11.27"]
[EventType "tourn"]
[EventCountry "ENG"]
[SourceTitle "playchess.com"]
[Source "ChessBase"]
[SourceQuality "1"]
[TimeControl "40/5400+30:1800+30"]

{[%evp 13,66,21,18,20,24,0,25,24,23,3,3,0,0,0,0,0,0,0,33,43,36,34,29,45,149,154,149,166,152,150,156,134,137,137,137,124,150,136,151,-185,-150,-801,-821,-801,-808,-1296,-1283,-1569,-1532,-1418,-1340,-837,-830,-820,-691]} 1. e4 {[%emt 0:00:05]} e5 {[%emt 0:01:03]} 2. Nf3 {[%emt 0:00:12]} Nf6 {[%emt 0:00:05]} 3. Nxe5 {[%emt 0:00:08]} d6 {[%emt 0:00:05]} 4. Nf3 {[%emt 0:00:07]} Nxe4 {[%emt 0:00:05]} 5. Nc3 {[%emt 0:00:31]} Nxc3 {[%emt 0:00:05]} 6. dxc3 {[%emt 0:00:05]} Be7 {[%emt 0:00:16]} 7. Be3 {[%emt 0:00:10]} O-O {[%emt 0:00:32]} 8. Qd2 {[%emt 0:00:05] C42: Petroff Defence: 3 Nxe5 and unusual White 3rd moves.} Nd7 {[%emt 0:00:13]} 9. O-O-O {[%emt 0:00:09]} Nf6 {[%emt 0:01:09]} 10. Bd3 {[%emt 0:00:17] White has an edge.} Re8 $1 {[%emt 0:01:17][%mdl 4] [#] is currently scoring better than 10...c5.} 11. a3 $5 $146 {[%emt 0:12:50][%mdl 8] An interesting novelty.} ({Predecessor:} 11. Rhe1 Bg4 12. h3 Bxf3 13. gxf3 d5 14. h4 Bf8 15. Rg1 Kh8 16. h5 h6 17. Rg2 {0-1 Aronian,L (2742)-Nepomniachtchi,I (2779) Julius Baer Rapid Div 2 W 2023 (5.2)}) 11... d5 {[%emt 0:23:44]} 12. Rhe1 {[%emt 0:22:44]} Bg4 {[%emt 0:06:12]} 13. h3 {[%emt 0:03:28]} Bxf3 {[%emt 0:00:13]} 14. gxf3 {[%emt 0:00:06]} Qd7 {[%emt 0:00:53]} 15. Rg1 {[%emt 0:05:09]} Qxh3 {[%emt 0:10:08]} (15... Qd6 {simplifies} 16. Kb1 a6 17. c4 dxc4 18. Bxc4 Qxd2 19. Rxd2 Rad8) 16. Bd4 {[%emt 0:13:31][%cal Og1g7] Rxg7+! would be deadly.} g6 {[%emt 0:10:50]} 17. Qf4 $36 {[%emt 0:09:38][%csl LRc7,LRf6][%mdl 2048] White has some pressure.} Nh5 {[%emt 0:02:16]} 18. Qxc7 {[%emt 0:00:06] Strongly threatening Bb5.} (18. Qe5 Bf6 19. Qxd5 c6 $15) 18... Qxf3 {[%emt 0:06:44]} ({Black should play} 18... Bf6 $14) 19. Bb5 $16 {[%emt 0:03:04][%cal Bd3b5,Bb5e2,Be2f3][%mdl 32]} ({Resist} 19. Qxb7 Rab8 20. Qxa7 Bf6 $16) 19... Rac8 {[%emt 0:16:36]} 20. Qxb7 {[%emt 0:00:54]} Rb8 {[%emt 0:01:08]} 21. Qa6 {[%emt 0:00:24]} Red8 {[%emt 0:05:12]} 22. Be2 {[%emt 0:06:23] A strong pair of Bishops.} ({But not} 22. Qxa7 $6 Bxa3 23. Qxa3 Rxb5 $14) 22... Qf4+ {[%emt 0:01:45] [#]} 23. Be3 $1 {[%emt 0:01:48]} Qe5 {[%emt 0:00:49]} 24. Qxa7 {[%emt 0:01:21] Hoping for Bxh5.} Nf4 {[%emt 0:04:23][%cal Bh5f4,Bf4e6,Be6d4][%mdl 32]} 25. Bf3 {[%emt 0:01:29] aiming for Rg4.} Bd6 {[%emt 0:00:48]} 26. Rd2 $2 {[%emt 0:08:11] [#]} (26. Qd4 $16 {and life is bright.}) 26... Bxa3 $1 $19 {[%emt 0:00:53]} 27. Rd4 $2 {[%emt 0:05:58] Now White is beyond hope.} (27. Qxa3 $17 Ra8 28. Qxa8 Rxa8 29. Rdd1) 27... Bxb2+ {[%emt 0:00:43] Black is clearly winning.} 28. Kd2 {[%emt 0:02:28]} Ne6 {[%emt 0:00:28]} 29. Rd3 {[%emt 0:00:55] [#]} Bxc3+ $1 {[%emt 0:00:46][%mdl 576] Remove Defender, Decoy} 30. Rxc3 {[%emt 0:00:10]} (30. Ke2 Nf4+) 30... d4 {[%emt 0:00:05]} 31. Rd3 {[%emt 0:00:26]} dxe3+ {[%emt 0:00:17]} 32. Qxe3 {[%emt 0:00:51]} Rxd3+ {[%emt 0:00:12]} 33. cxd3 {[%emt 0:00:05] [#]} Nd4 $1 {[%emt 0:00:54] A superb game by Moussard.   Weighted Error Value: White=0.82/Black=0.10 (very precise)} 0-1